Cogmind - Beta 16.1 @@@ ROGUE MODE // 2026.03.29 @ 18:07:29 Player: ash Result: Smashed by cave-in Performance ------------- Evolutions (2) 1000 Regions Visited (5) 1000 Robots Destroyed (59) 295 Value Destroyed (1574) 1574 Prototype IDs (1) 20 Alien Tech Used (0) 0 Bonus (26) 26 TOTAL SCORE: 3915 Bonus ------- High Alert Combat Kills 26 Cogmind --------- Core Integrity 0/550 Matter 34/300 Energy 100/100 System Corruption 19% Temperature Cool (0) Movement Core (350) Ox6 Location -8/Materials Parts ------- > --- POWER (1) -------- (None) > --- PROPULSION (4) --- (None) > --- UTILITY (4) ------ Large Storage Unit > --- WEAPON (2) ------- (None) > --- INVENTORY (15) --- Scrap Suit Shock Rifle Particle Gun Heavy Assault Rifle Heavy Assault Rifle Improved Grenade Launcher Heavy Mace Peak State ------------ > --- POWER ------------ Light Nuclear Core > --- PROPULSION ------- Aluminum Leg Aluminum Leg Improved Aluminum Leg Improved Aluminum Leg > --- UTILITY ---------- Large Storage Unit Machine Analyzer Advanced Visual Processing Unit Sensor Array > --- WEAPON ----------- Improved EM Shotgun Improved EM Shotgun > --- INVENTORY -------- Improved Ion Engine Aluminum Leg Aluminum Leg Scrap Suit Structural Scanner Hardened Light Armor Plating Hardened Light Armor Plating Particle Gun Field Laser Heavy Assault Rifle Heavy Assault Rifle Heavy Assault Rifle Improved Grenade Launcher Heavy Mace [Rating: 26] Favorites ----------- Power Ion Engine Engine Ion Engine Power Core Light Nuclear Core Propulsion Improved Aluminum Leg Treads Light Treads Leg Improved Aluminum Leg Wheel Wheel Utility Large Storage Unit Device Structural Scanner Storage Large Storage Unit Processor Advanced Visual Processing Unit Protection Hardened Light Armor Plating Weapon Improved EM Shotgun Energy Gun Improved EM Shotgun Ballistic Gun Heavy Assault Rifle Launcher Improved Grenade Launcher Impact Weapon Heavy Mace Build | -11 -10 -10 -9 -9 -8 ------- Run | Yrd Mat Min Mat Min Mat Slots Evolved 4 | . . . 2 . 2 Power . | . . . . . . Propulsion 2 | . . . 2 . . Utility 2 | . . . . . 2 Weapon . | . . . . . . Parts Attached 51 | 9 6 . 18 6 12 Power 5 | 2 . . 1 1 1 Engine 4 | 2 . . 1 . 1 Core 1 | . . . . 1 . Reactor . | . . . . . . Propulsion 16 | 3 2 . 8 1 2 Treads 1 | 1 . . . . . Leg 14 | 2 2 . 8 1 1 Wheel 1 | . . . . . 1 Hover . | . . . . . . Flight . | . . . . . . Utility 12 | 2 1 . 4 1 4 Device 4 | 1 1 . . . 2 Storage 2 | 1 . . 1 . . Processor 2 | . . . . . 2 Hackware . | . . . . . . Protection 4 | . . . 3 1 . Artifact . | . . . . . . Weapon 18 | 2 3 . 5 3 5 Energy Gun 10 | 2 1 . 3 . 4 Energy Cannon . | . . . . . . Ballistic Gun 4 | . 1 . 1 2 . Ballistic Cannon . | . . . . . . Launcher 1 | . . . . 1 . Special Weapon . | . . . . . . Impact Weapon 3 | . 1 . 1 . 1 Slashing Weapon . | . . . . . . Piercing Weapon . | . . . . . . Special Melee Weapon . | . . . . . . Unidentified Prototypes 1 | . . . 1 . . Corrupted Parts 1 | . 1 . . . . System Corruption 5 | . 5 . . . . Parts Lost 21 | . 1 . 1 . 19 Power 3 | . . . 1 . 2 Propulsion 8 | . . . . . 8 Utility 5 | . . . . . 5 Weapon 5 | . 1 . . . 4 Highest Loss Streak 8 | . 1 . 1 . 8 To Critical Strikes . | . . . . . . Average Backups 10 | . 4 8 12 14 10 Power . | . 1 1 . 1 . Propulsion 1 | . 1 3 2 2 1 Utility 2 | . 1 1 2 4 1 Weapon 5 | . 1 3 6 7 6 Tool/Special . | . . . . . . Unused Backups 11 | . 3 . 6 1 1 Power . | . . . . . . Propulsion 3 | . 2 . 1 . . Utility 5 | . 1 . 2 1 1 Weapon 3 | . . . 3 . . Tool/Special . | . . . . . . Average Slot Usage (%) 94 | . 99 100 99 100 78 Engine 6 | . 14 14 11 . 1 Core 3 | . . . . 10 4 Leg 37 | . 28 28 43 44 27 Device 10 | . 14 14 8 9 10 Storage 11 | . 14 14 11 11 9 Protection 3 | . . . 2 1 8 Energy Gun 16 | . 25 14 18 15 7 Ballistic Gun 4 | . . 14 2 6 6 Peak Build Rating 26 | 7 8 8 21 22 26 Average Rating 16 | 4 7 8 18 19 17 On Entrance 10 | . 7 8 8 19 18 Avg Prop Armor Cover (%) 11 | . . . . . 11 Naked Turns . | . . . . . . Heaviest Build 42 | 15 15 15 36 36 42 Greatest Support 52 | 20 20 20 52 49 46 Greatest Overweight (x) 3 | . . . . . 3 Average Overweight (x) . | . . . . . . Largest Inventory Capacity 15 | 8 8 8 15 15 15 Average Capacity 13 | 6 8 8 13 15 15 Most Carried 15 | 2 8 8 15 15 15 Average Carried 11 | . 4 8 12 14 11 Final Capacity 15 | 8 8 8 15 15 15 Final Carried 15 | 1 8 8 15 14 8 Class Distribution -------------------- 72% | Mutant 27% | Scavenger-Mutant Dominant Class ---------------- Mutant | -10/Materials Mutant | -10/Mines Mutant | -9/Materials Scavenger-Mutant | -9/Mines Mutant | -8/Materials Resources | -11 -10 -10 -9 -9 -8 ----------- Run | Yrd Mat Min Mat Min Mat Matter Collected 1047 | 182 297 . 245 127 196 Remotely . | . . . . . . Salvage Created 1910 | 66 331 . 901 119 493 Parts 121 | 8 27 . 52 13 21 Haulers Intercepted 2 | . . . 2 . . Recyclers Shooed 2 | . . . . . 2 Parts Field Recycled . | . . . . . . Retrieved Matter . | . . . . . . Parts Self-Destructed . | . . . . . . Prevented . | . . . . . . Parts Restored . | . . . . . . Kills | -11 -10 -10 -9 -9 -8 ------- Run | Yrd Mat Min Mat Min Mat Combat Hostiles Destroyed 44 | . 6 . 17 8 13 Guns 25 | . 6 . 12 2 5 AOE 19 | . . . 5 6 8 Classes Destroyed 13 | 1 5 . 3 . 4 Worker 1 | . . . . . 1 Builder 2 | . 1 . . . 1 Tunneler 4 | 3 1 . . . . Hauler 2 | . . . 2 . . Recycler 2 | . 1 . . . 1 Mechanic 2 | . . . . . 2 Watcher 2 | . 1 . 1 . . Swarmer 15 | . 3 . 3 6 3 Grunt 19 | . 3 . 7 2 7 Duelist 2 | . . . 2 . . Sentry 5 | . . . 5 . . Specialist 2 | . . . . . 2 Hunter 1 | . . . . . 1 Best Kill Streak 8 | 3 8 . 4 6 5 Combat Bots Only 6 | . 5 . 4 6 4 Max Kills in Single Turn 2 | 1 2 . 2 2 2 Gunslinging 1 | . . . 1 . . Exploded 2 | . . . 2 2 2 Melee . | . . . . . . Uniques/NPCs Destroyed . | . . . . . . Combat | -11 -10 -10 -9 -9 -8 -------- Run | Yrd Mat Min Mat Min Mat Hostile Shots Fired 248 | . 18 . 56 14 160 Missed 82 | . 1 . 18 3 60 Hits 166 | . 17 . 38 11 100 Melee 2 | . . . 2 . . Projectile 164 | . 17 . 36 11 100 Critical Strikes 7 | . . . 2 . 5 Damage Taken 3702 | . 217 . 619 174 2692 Core 710 | . 27 . 62 57 564 Absorbed by Shields . | . . . . . . Core Remaining (%) 86 | 100 . 89 . 70 . Volleys Fired 112 | 3 16 . 33 7 53 Largest 2 | 2 2 . 2 2 2 Hottest 90 | 80 80 . 90 90 90 Shots Fired 213 | 6 32 . 66 10 99 Gun 200 | 6 32 . 66 6 90 Cannon . | . . . . . . Launcher 13 | . . . . 4 9 Special . | . . . . . . Kinetic 61 | . 3 . 7 . 51 Thermal 17 | . . . 7 . 10 Explosive 13 | . . . . 4 9 Electromagnetic 122 | 6 29 . 52 6 29 Robot Hit Streak 14 | 2 8 . 14 2 10 Robot Miss Streak 5 | 1 1 . 5 1 5 Penetration Max . | . . . . . . Secondary Targets 5 | . . . 3 1 1 Max Gunslinging Chain 1 | . . . 1 1 1 Shots Hit Robots 146 | 3 23 . 47 7 66 Core Hits 100 | 3 15 . 33 10 39 Critical Kills . | . . . . . . Critical Parts Destroyed . | . . . . . . Critical Strikes . | . . . . . . Melee Attacks 6 | . 1 . 1 . 4 Impact 6 | . 1 . 1 . 4 Slashing . | . . . . . . Piercing . | . . . . . . Sneak Attacks . | . . . . . . Combat Hostiles . | . . . . . . Follow-up Attacks . | . . . . . . Damage Inflicted 4418 | 44 368 8 1129 442 2427 Guns 2162 | 42 306 . 800 57 957 Cannons . | . . . . . . Explosions 2220 | . 59 . 308 383 1470 Melee . | . . . . . . Ramming 36 | 2 3 8 21 2 . Kinetic 497 | . 18 . 49 . 430 Thermal 997 | . 59 . 384 . 554 Explosive 1423 | . . . . 383 1040 Electromagnetic 1465 | 42 288 . 675 57 403 Impact . | . . . . . . Slashing . | . . . . . . Piercing . | . . . . . . Highest Corruption 19 | . 5 5 . . 19 Average Corruption 15 | . 5 5 . . 17 Corruption Purged . | . . . . . . Corruption Blocked . | . . . . . . Effects 6 | . . 1 . . 5 Message Errors 2 | . . . . . 2 Matter Fused 2 | . . 1 . . 1 Heat Flow Errors 1 | . . . . . 1 Energy Discharges 1 | . . . . . 1 Overload Shots . | . . . . . . Overflow Damage 242 | . . . . 38 204 Projectiles . | . . . . . . Explosions 242 | . . . . 38 204 Melee . | . . . . . . Knockbacks . | . . . . . . Impact . | . . . . . . Kinetic . | . . . . . . Secondary . | . . . . . . Self-Inflicted Damage 396 | . 29 . 112 62 193 Shots 9 | . 1 . 3 2 3 Rammed . | . . . . . . Targets Rammed 7 | 1 2 1 2 1 . Kicked 7 | 1 2 1 2 1 . Crushed . | . . . . . . Highest Temperature 285 | 36 81 . 104 117 285 Average Temperature 55 | 18 36 . 39 61 77 Received Heat Transfer 801 | . 84 . 168 27 522 Siege Activations . | . . . . . . Martial Activations . | . . . . . . Shielding Activations . | . . . . . . Robots Disrupted . | . . . . . . Combat Hostiles . | . . . . . . Robots Corrupted 1 | . . . 1 . . Combat Hostiles . | . . . . . . Parts Fried 6 | . . . 6 . . Impact Corruptions . | . . . . . . Robots Melted . | . . . . . . Combat Hostiles . | . . . . . . Parts Melted 2 | . . . . . 2 Heat Transferred 1344 | . 100 . 485 . 759 Parts Sabotaged . | . . . . . . Parts Stolen . | . . . . . . Parts Stripped . | . . . . . . Power Chain Reactions 9 | . 1 . 5 . 3 Alert | -11 -10 -10 -9 -9 -8 ------- Run | Yrd Mat Min Mat Min Mat Maximum Alert Level 2 | . . . 1 1 2 Low Security (%) 62 | 100 100 100 44 81 41 Level 1 27 | . . . 55 18 18 Level 2 9 | . . . . . 39 Level 3 . | . . . . . . Level 4 . | . . . . . . Level 5 . | . . . . . . High Security . | . . . . . . Max Security . | . . . . . . Peak Influence 507 | 5 128 29 330 242 507 Initial 109 | . 3 29 11 109 26 Average 174 | . 53 29 209 142 257 Influence Increases 1841 | 15 196 . 598 213 819 Destroy 0b10 Robot/C 880 | . 120 . 340 160 260 Destroy 0b10 Robot/NC 75 | 15 20 . 15 . 25 Destroy Leader 228 | . 32 . 106 30 60 Successful Hack 5 | . 5 . . . . Disable Machine 90 | . . . 45 . 45 Destroy Structure 128 | . 4 . 32 23 69 Lose Combat Pursuer 435 | . 15 . 60 . 360 Influence Decreases 1428 | 10 125 47 345 427 474 Entered New Map 282 | . 2 47 18 173 42 Time Decay 936 | 10 113 . 317 254 242 Lost Part 210 | . 10 . 10 . 190 Squads Dispatched 11 | . 1 . 3 . 7 Investigation 1 | . 1 . . . . Extermination . | . . . . . . Reinforcement 7 | . . . 3 . 4 Assault . | . . . . . . Garrison 3 | . . . . . 3 Intercept . | . . . . . . Searches Triggered . | . . . . . . Construction Impeded 1 | . . . . . 1 Haulers Reinforced . | . . . . . . Active Scanning Responses . | . . . . . . Cargo Convoy Interrupts . | . . . . . . Stealth | -11 -10 -10 -9 -9 -8 --------- Run | Yrd Mat Min Mat Min Mat Distress Signals 5 | . 3 . . . 2 Communications Jammed . | . . . . . . Distress Signals . | . . . . . . Times Spotted 81 | . 11 . 23 8 39 Peak Tracking Total 5 | . 3 . 5 3 5 Tactical Retreats 14 | . 1 . 2 . 11 Traps | -11 -10 -10 -9 -9 -8 ------- Run | Yrd Mat Min Mat Min Mat Traps Triggered 1 | . 1 . . . . Indirectly . | . . . . . . Trap Hack Attempts . | . . . . . . Triggered . | . . . . . . Disarmed . | . . . . . . Reprogrammed . | . . . . . . Reused . | . . . . . . Traps Extracted . | . . . . . . Installed . | . . . . . . Triggered . | . . . . . . Machines | -11 -10 -10 -9 -9 -8 ---------- Run | Yrd Mat Min Mat Min Mat Machines Disabled 6 | . . . 3 . 3 Max in Single Turn 2 | . . . 1 . 2 Machines Repaired . | . . . . . . Machines Dismantled . | . . . . . . Machines Sabotaged . | . . . . . . Overloaded Fab Kills . | . . . . . . Hacking | -11 -10 -10 -9 -9 -8 --------- Run | Yrd Mat Min Mat Min Mat Machines Accessed 5 | . 2 . 3 . . Terminals 5 | . 2 . 3 . . Fabricators . | . . . . . . Repair Stations . | . . . . . . Recycling Units . | . . . . . . Scanalyzers . | . . . . . . Garrison Access . | . . . . . . Total Hacks 14 | . 8 . 6 . . Successful 7 | . 5 . 2 . . Failed 7 | . 3 . 4 . . Catastrophic 2 | . 1 . 1 . . Database Lockouts . | . . . . . . Manual 10 | . 6 . 4 . . Terminals 14 | . 8 . 6 . . Fabricators . | . . . . . . Repair Stations . | . . . . . . Recycling Units . | . . . . . . Scanalyzers . | . . . . . . Garrison Access . | . . . . . . Terminal Hacks 3 | . 2 . 1 . . Alert Level 1 | . . . 1 . . Locate Traps 1 | . 1 . . . . Zone Layout 1 | . 1 . . . . Fabricator Hacks . | . . . . . . Repair Station Hacks . | . . . . . . Recycling Unit Hacks . | . . . . . . Scanalyzer . | . . . . . . Garrison Access Hacks . | . . . . . . Unauthorized Hacks 4 | . 3 . 1 . . Terminals 4 | . 3 . 1 . . Track 3 | . 2 . 1 . . Botnet 1 | . 1 . . . . Fabricators . | . . . . . . Repair Stations . | . . . . . . Recycling Units . | . . . . . . Scanalyzers . | . . . . . . Garrison Access . | . . . . . . Data Cores Recovered . | . . . . . . Used . | . . . . . . Hacking Detections 5 | . 2 . 3 . . Full Trace Events . | . . . . . . Feedback Events . | . . . . . . Feedback Blocked . | . . . . . . Robot Schematics Acquired . | . . . . . . Robots Built . | . . . . . . Authchips . | . . . . . . Time . | . . . . . . Total Robot Build Rating . | . . . . . . Part Schematics Acquired . | . . . . . . Parts Built . | . . . . . . Authchips . | . . . . . . Time . | . . . . . . Total Part Build Rating . | . . . . . . Part Studies Acquired . | . . . . . . Parts Repaired . | . . . . . . Time . | . . . . . . Parts Recycled . | . . . . . . Recycled Matter . | . . . . . . Retrieved Matter . | . . . . . . Retrieved Components . | . . . . . . Parts Scanalyzed . | . . . . . . Part Schematics Acquired . | . . . . . . Parts Damaged . | . . . . . . Bothacking | -11 -10 -10 -9 -9 -8 ------------ Run | Yrd Mat Min Mat Min Mat Used RIF Installer . | . . . . . . Robots Hacked . | . . . . . . Non-combat . | . . . . . . Combat . | . . . . . . Robot Hacks Applied . | . . . . . . Relay Couplers Released . | . . . . . . Fabnet Peak Effective % . | . . . . . . Robots Rewired . | . . . . . . Allies Hacked . | . . . . . . Hacks Repelled . | . . . . . . Allies | -11 -10 -10 -9 -9 -8 -------- Run | Yrd Mat Min Mat Min Mat Total Allies 1 | . . . . 1 . Largest Group 1 | . . . . 1 1 Highest-Rated Group 31 | . . . . 31 31 Highest-Rated Ally 31 | . . . . 31 31 Total Orders . | . . . . . . Ally Attacks . | . . . . . . Total Damage . | . . . . . . Kills . | . . . . . . Allies Corrupted . | . . . . . . Allies Melted . | . . . . . . Intel | -11 -10 -10 -9 -9 -8 ------- Run | Yrd Mat Min Mat Min Mat Active Infowar (turns) 1934 | 3 376 15 602 455 483 Optics 54 | . . . . . 54 Sensors 311 | . . . . . 311 Structural 1071 | . 192 15 601 21 242 Seismic 684 | 3 184 . 1 434 62 Machine Analysis 7 | . . . . . 7 Robot Analysis Total . | . . . . . . Derelict Logs Recovered . | . . . . . . Drone Launches . | . . . . . . Drone Recoveries . | . . . . . . Exploration | -11 -10 -10 -9 -9 -8 ------------- Run | Yrd Mat Min Mat Min Mat Turns Passed 2424 | 70 376 15 811 550 602 Spaces Moved 1449 | 41 241 12 515 426 214 Core 6 | 6 . . . . . Treads 1 | 1 . . . . . Legs 1436 | 34 241 12 515 426 208 Wheels 6 | . . . . . 6 Hover . | . . . . . . Flight . | . . . . . . Fastest Speed 50 | 50 120 120 120 120 120 Average Speed 119 | 110 120 120 120 120 120 Slowest Speed 190 | 160 120 120 120 120 190 Overloaded Moves . | . . . . . . Propulsion Burnouts . | . . . . . . Robots Hopped . | . . . . . . Potential Cave-ins . | . . . . . . Cave-ins Triggered 16 | . . . . . 16 Exploration Rate (%) 35 | 3 55 6 59 80 9 Regions Visited 5 Branch Regions 2 Pre-discovered Areas . | . . . . . . Known Exits Taken . | . . . . . . Unknown Exits Taken 5 | 1 1 1 1 1 . Scrap Searched 1 | . . . . 1 . Spaces Dug 5 | . 1 . 1 . 3 Terrain Destroyed 154 | . 4 . 34 29 87 Melee 5 | . 1 . 1 . 3 Projectile . | . . . . . . AOE 149 | . 3 . 33 29 84 Terrain Rammed . | . . . . . . Walls Destroyed . | . . . . . . Machines Disabled . | . . . . . . Actions | -11 -10 -10 -9 -9 -8 --------- Run | Yrd Mat Min Mat Min Mat Total 1913 | 56 296 12 647 455 447 Wait 196 | . 10 . 38 6 142 Move 1444 | 40 240 11 514 425 214 Hop . | . . . . . . Pick Up 35 | 1 13 . 16 1 4 Fast Attach 14 | 7 . . 2 1 4 Attach 21 | 1 2 . 6 2 10 Detach 8 | 1 . . 3 2 2 Swap 39 | 1 5 . 16 5 12 Drop 31 | 1 7 . 16 5 2 Fire 112 | 3 16 . 33 7 53 Melee 6 | . 1 . 1 . 4 Ram . | . . . . . . Kick 7 | 1 2 1 2 1 . Crush . | . . . . . . Escape Stasis . | . . . . . . Rewire . | . . . . . . Trap . | . . . . . . Miscellaneous . | . . . . . . Route ------- -11/Scrapyard -10/Materials (discovered 3 exits: Mat / [*Min x2]) -10/Mines -9/Materials (discovered 3 exits: [*Mat x2] / [*Min]) -9/Mines (discovered 4 exits: [*Mat x2] / [*Exi] / [*Zio]) -8/Materials History --------- Turn | Location | Event 10 | -11/Scrapyard | Discovered new exit (range 15) 71 | -11/Scrapyard | Entered Materials 161 | -10/Materials | Discovered new exit (range 12) 306 | -10/Materials | Discovered new exit (range 16) 314 | -10/Materials | Build established: Mutant 389 | -10/Materials | Discovered new exit (range 8) 447 | -10/Materials | Entered Mines 457 | -10/Mines | Discovered new exit (range 3) 462 | -10/Mines | Entered Materials 462 | -9/Materials | Evolved 2 slots: Propulsion x2 807 | -9/Materials | Discovered new exit (range 4) 991 | -9/Materials | Discovered new exit (range 3) 1264 | -9/Materials | Discovered new exit (range 6) 1273 | -9/Materials | Entered Mines 1319 | -9/Mines | Discovered new exit (range 10) 1359 | -9/Mines | Discovered new exit (range 14) 1522 | -9/Mines | A Derelict revealed a hidden shortcut to a safe place 1590 | -9/Mines | Received a Mining Laser from a helpful Derelict 1607 | -9/Mines | Deemed a non-threat by the Exiles lab entrance 1607 | -9/Mines | Discovered new exit (range 5) 1660 | -9/Mines | Found a Scrap Suit stashed away for nefarious purposes 1667 | -9/Mines | Found Scrap Suit 1687 | -9/Mines | Build established: Scavenger-Mutant 1823 | -9/Mines | Entered Materials 1823 | -8/Materials | Accompanied by 1 ally 1823 | -8/Materials | Evolved 2 slots: Utility x2 1969 | -8/Materials | Garrison activated, responded to threat 2106 | -8/Materials | Lost 3 parts (1n2w) 2170 | -8/Materials | Lost 4 parts (1p1n2u) 2291 | -8/Materials | Lost 3 parts (1p2n) 2322 | -8/Materials | Crushed by falling debris 2322 | -8/Materials | System corruption reached 10% 2323 | -8/Materials | Crushed by falling debris 2333 | -8/Materials | Crushed by falling debris 2337 | -8/Materials | Crushed by falling debris 2338 | -8/Materials | Crushed by falling debris 2340 | -8/Materials | Crushed by falling debris 2340 | -8/Materials | Core integrity fell below 50% 2344 | -8/Materials | Crushed by falling debris 2353 | -8/Materials | Crushed by falling debris 2354 | -8/Materials | Build established: Mutant 2355 | -8/Materials | Crushed by falling debris 2358 | -8/Materials | Crushed by falling debris 2367 | -8/Materials | Crushed by falling debris 2375 | -8/Materials | Crushed by falling debris 2389 | -8/Materials | Lost 8 parts (3n3u2w) 2394 | -8/Materials | Crushed by falling debris 2394 | -8/Materials | Core integrity fell below 20% 2408 | -8/Materials | Crushed by falling debris 2416 | -8/Materials | Crushed by falling debris 2426 | -8/Materials | Crushed by falling debris 2426 | -8/Materials | Smashed by cave-in Last Messages --------------- 02358_ The unstable cave ceiling collapses. 02358_ Crushed by falling debris. 02358_ Imp. Heat Sink destroyed. 02358_ System corrupted by crushing effect (+4). 02365_ System corrupted: Heat flow error (+125). 02367_ The unstable cave ceiling collapses. 02367_ Crushed by falling debris. 02375_ The unstable cave ceiling collapses. 02375_ Crushed by falling debris. 02380_ System corrupted: Energy discharge (-37). 02394_ The unstable cave ceiling collapses. 02394_ Crushed by falling debris. 02406_ System corrupted: Matter fused (-5). 02408_ The unstable cave ceiling collapses. 02408_ Crushed by falling debris. 02416_ The unstable cave ceiling collapses. 02416_ Crushed by falling debris. 02421_ HNKHRZ2CAQ>&9AX#O5GMHHGUYU:QZUKLPIFQRK 02426_ The unstable cave ceiling collapses. 02426_ Crushed by falling debris. Map ----- +----------------------------------------------------+ | | | | | | | | | | | | | | | | | | | | | | | ????????###############??????????????????????????? | | ????????## ##??????????????????????????? | | ????????## ##??????????????????????????? | | ????????## ##??????????????????????????? | | ????????## /! ##??????????????????????????? | | ????????## /! ##??????????????????????????? | | ????????## ! ####????????????????????????? | | ????????## # ###???????????????????????? | | ????????#######+ ###??????????????????????? | | ????????## # #??????????????????????? | | ????????## [ # #??????????????????????? | | ????????## # #??????????????????????? | | ????????######### # # # #??????????????????????? | | ????????###### # ###??????????????????????? | | ????????????## # #@#######????????????????? | | ????????????## """ + #########????????????????? | | ????????????## """ # # """ ##????????????????? | | ???????????### """ # #="R" ##????????????????? | | ?????????##### # #%" " ##????????????????? | | ?????????##########"# #= % ##????????????????? | | ?????????## # # ##????????????????? | | ?????????## # # % ##????????????????? | | ?????????## %+ ###+#####????????????????? | | ?????????## # ! ##????????????????? | | ?????????## " # % ##????????????????? | | ?????????## " # ##????????????????? | | ?????????## " ######## ##????????????????? | | ?????????## ####### [ ##????????????????? | | ?????????#####""""""# =# ????????????????? | | ?????????####### ### [%%# #???????????????? | | ????????????######### ==# ##??????????????? | | ??????????????####### # #??????????????? | | ???????????????????######## # ##??????????????? | | ??????????????????? ####### #??????????????? | | ?????????????????????????? ??????????????? | | ?????????????????????????? ?????????????? | | ?????????????????????????? ????????????? | | ??????????????????????????# # #+#????????????? | | ??????????????????????????###+##### ????????????? | +----------------------------------------------------+ Best States ------------- Heat Dissipation 45 Energy Generation 14 Energy Capacity 265 Matter Stores 300 Matter Capacity 300 Sight Range 20 Robot Scan Range 14 Terrain Scan Density 10 Armor Coverage 300 Evasion (%) 55 Item Schematics ----------------- None Robot Schematics ------------------ None Fabricated ------------ Nothing Repaired ---------- Nothing Studied --------- None Alien Tech Used ----------------- None Achievements -------------- None Challenges ------------ None Game ------ Seed SeismicAntimissileBlade Manual? 0 Play Time 00:38:49 Cumulative 114.5 hours Start 2026.03.29 @ 17:13:50 End 2026.03.29 @ 18:07:29 Sessions 1 Manual Loads 0 Difficulty Rogue Special Mode None Game No. 108 Rogue 63 Adventurer 45 Explorer 0 Win Type - Total 3 Types 2/0/0/1/0/0/0/0/0/0 Lore% 63 Gallery% 55 Achievement% 40 Wizard Run 0 Options --------- Layout 0 ASCII 0 Keyboard 1 Movement Numpad Keybinds 0 Fullscreen 1 Font 24/Smallcaps Map View 76x50 Zoom Use 0% Tactical HUD 1 Map Filters NONE Filters NONE Steam 1 RUN: 90894b55-95c9-4401-8d8c-9280f3a439d4